Cogmind - Beta 13 --- EXPLORER MODE // 2024.05.19 @ 18:21:45 Player: Blade Result: Self-destructed Performance ------------- Evolutions (5) 2500 Regions Visited (8) 1600 Robots Destroyed (95) 475 Value Destroyed (3457) 3457 Prototype IDs (5) 100 Alien Tech Used (0) 0 Bonus (17) 17 TOTAL SCORE: 8149 Bonus ------- High Alert Combat Kills 41 Friendly Fire -24 Cogmind --------- Core Integrity 716/1000 Matter 169/300 Energy 137/150 System Corruption 12% Temperature Cool (0) Movement Core (700) Ox13 Location -5/Factory Parts ------- > --- POWER (2) -------- Micro Fission Core > --- PROPULSION (3) --- (None) > --- UTILITY (10) ----- Large Storage Unit Enhanced Optical Array Improved Terrain Scan Processor Improved Target Analyzer Improved Target Analyzer Improved Target Analyzer Precision Energy Filter Improved Kinecellerator > --- WEAPON (3) ------- Improved Remote Datajack Segregator > --- INVENTORY (15) --- Cooled Ion Engine Light Angular Momentum Engine Light Treads Improved Treads Medium Treads Peak State ------------ > --- POWER ------------ Neutrino Core Micro Fission Core > --- PROPULSION ------- Medium Treads Advanced Heavy Siege Treads > --- UTILITY ---------- Improved Heat Sink Large Storage Unit Enhanced Optical Array Improved Terrain Scan Processor Improved Target Analyzer Improved Target Analyzer Precision Energy Filter Improved Kinecellerator Microactuators Shield Generator > --- WEAPON ----------- KE Penetrator Improved Remote Datajack > --- INVENTORY -------- Cooled Ion Engine Light Angular Momentum Engine Light Treads Improved Treads Medium Treads [Rating: 88] Favorites ----------- Power Light Deuterium Engine Engine Light Deuterium Engine Power Core Neutrino Core Propulsion Light Treads Treads Light Treads Utility Large Storage Unit Device Terrain Scanner Storage Large Storage Unit Processor Improved Terrain Scan Processor Protection Light Armor Plating Weapon Advanced Beam Cannon Energy Gun Beamcaster Energy Cannon Advanced Beam Cannon Ballistic Gun Shotgun Launcher Grenade Launcher Special Weapon Mining Laser Slashing Weapon Mining Claw Build | -11 -10 -10 -9 -9 -8 -7 -6 -5 ------- Run | Yrd Mat Min Mat Sto Mat Fac Fac Fac Slots Evolved 11 | . 1 . 2 . 2 2 2 2 Power 1 | . . . . . 1 . . . Propulsion 1 | . . . 1 . . . . . Utility 8 | . 1 . 1 . . 2 2 2 Weapon 1 | . . . . . 1 . . . Parts Attached 92 | 8 7 1 8 16 10 7 3 32 Power 13 | 1 . . 1 2 1 2 2 4 Engine 11 | 1 . . 1 2 1 2 2 2 Core 2 | . . . . . . . . 2 Reactor . | . . . . . . . . . Propulsion 14 | 2 . . 1 2 2 1 . 6 Treads 14 | 2 . . 1 2 2 1 . 6 Leg . | . . . . . . . . . Wheel . | . . . . . . . . . Hover . | . . . . . . . . . Flight . | . . . . . . . . . Utility 31 | 2 4 . 1 3 2 4 1 14 Device 10 | . 1 . . . . 2 . 7 Storage 4 | 1 3 . . . . . . . Processor 5 | . . . . . 1 . 1 3 Hackware . | . . . . . . . . . Protection 12 | 1 . . 1 3 1 2 . 4 Artifact . | . . . . . . . . . Weapon 34 | 3 3 1 5 9 5 . . 8 Energy Gun 7 | 2 . . 2 1 1 . . 1 Energy Cannon 7 | . 1 . 1 2 3 . . . Ballistic Gun 9 | 1 . . 2 2 . . . 4 Ballistic Cannon . | . . . . . . . . . Launcher 6 | . . 1 . 4 1 . . . Special Weapon 2 | . 1 . . . . . . 1 Impact Weapon . | . . . . . . . . . Slashing Weapon 3 | . 1 . . . . . . 2 Piercing Weapon . | . . . . . . . . . Special Melee Weapon . | . . . . . . . . . Unidentified Prototypes 5 | . . . 1 2 1 . . 1 Parts Lost 27 | . . . . 5 3 . . 19 Power 3 | . . . . . . . . 3 Propulsion 6 | . . . . 2 1 . . 3 Utility 11 | . . . . 2 2 . . 7 Weapon 7 | . . . . 1 . . . 6 Highest Loss Streak 6 | . . . . 2 2 . . 6 To Critical Strikes 1 | . . . . . . . . 1 Average Slot Usage (%) 86 | . 94 100 95 97 77 66 70 74 Engine 9 | . 12 12 10 10 8 7 12 7 Core 1 | . . . . . . . . 2 Treads 20 | . 25 25 29 28 16 14 12 12 Device 8 | . 1 12 10 10 5 1 6 9 Storage 9 | . 21 12 10 10 8 7 6 5 Processor 5 | . . . . . 6 7 8 14 Protection 12 | . 12 12 16 19 6 7 6 9 Energy Gun 2 | . 7 . . . 8 7 6 . Energy Cannon 3 | . 1 . . 3 8 14 12 4 Ballistic Gun 5 | . 1 . 14 10 . . . 4 Launcher 1 | . . 2 2 3 7 . . . Special Weapon 1 | . . 9 . . . . . . Slashing Weapon 2 | . 11 12 2 . . . . . Naked Turns . | . . . . . . . . . Heaviest Build 108 | 19 108 32 42 43 44 47 47 86 Greatest Support 110 | 40 40 40 63 66 66 48 48 110 Greatest Overweight (x) 20 | . 2 . . . 1 1 . 20 Average Overweight (x) . | . . . . . . . . . Largest Inventory Capacity 25 | 10 25 15 15 15 15 15 15 15 Average Capacity 14 | 8 14 15 15 15 15 15 15 15 Most Carried 9 | . 6 6 7 9 9 7 6 6 Average Carried 4 | . 2 5 3 4 8 5 5 4 Final Capacity 15 | 10 15 15 15 15 15 15 15 15 Final Carried 9 | . 6 5 4 9 8 5 6 5 Class Distribution -------------------- 71% | Hacker-Mutant 15% | Hacker-Tank 4% | Scavenger-Mutant 4% | Hacker-Skirmisher 3% | Scavenger-Tank Dominant Class ---------------- Hacker-Mutant | -10/Materials Hacker-Mutant | -10/Mines Hacker-Mutant | -9/Materials Hacker-Mutant | -9/Storage Hacker-Skirmisher | -8/Materials Hacker-Tank | -7/Factory Hacker-Tank | -6/Factory Hacker-Mutant | -5/Factory Resources | -11 -10 -10 -9 -9 -8 -7 -6 -5 ----------- Run | Yrd Mat Min Mat Sto Mat Fac Fac Fac Matter Collected 1881 | 212 84 59 256 551 27 182 65 445 Remotely . | . . . . . . . . . Salvage Created 3528 | . 34 31 372 1172 255 195 131 1338 Parts 199 | . 3 1 28 81 8 3 2 73 Haulers Intercepted 3 | . . . 1 2 . . . . Recyclers Shooed 6 | . . 1 2 2 . . . 1 Parts Field Recycled . | . . . . . . . . . Retrieved Matter . | . . . . . . . . . Parts Self-Destructed . | . . . . . . . . . Prevented . | . . . . . . . . . Kills | -11 -10 -10 -9 -9 -8 -7 -6 -5 ------- Run | Yrd Mat Min Mat Sto Mat Fac Fac Fac Combat Hostiles Destroyed 81 | . 2 . 13 31 6 3 2 24 Melee 4 | . . . . 1 . . . 3 Guns 37 | . 2 . 6 11 3 . . 15 Cannons 14 | . . . . 6 1 3 1 3 AOE 20 | . . . 7 13 . . . . Classes Destroyed 18 | . 1 1 3 7 . . . 6 Worker 2 | . . 1 1 . . . . . Builder 1 | . . . . 1 . . . . Tunneler 2 | . . . . . . . . 2 Hauler 3 | . . . 1 2 . . . . Recycler 2 | . . . . 1 . 1 . . Mechanic 1 | . . . . 1 . . . . Operator 2 | . . . . . . . . 2 Watcher 1 | . . . . 1 . . . . Swarmer 18 | . 2 . 7 3 2 . . 4 Saboteur 1 | . . . . . . . . 1 Grunt 27 | . . . 3 13 2 3 2 4 Brawler 4 | . . . . 2 . . . 2 Duelist 2 | . . . . 1 . . . 1 Protector 1 | . . . . 1 . . . . Sentry 17 | . . . 3 11 2 . . 1 Specialist 1 | . . . . . . . . 1 Hunter 2 | . . . . . . . . 2 Programmer 8 | . . . . . . . . 8 Best Kill Streak 10 | . 2 1 5 10 4 3 2 5 Combat Bots Only 9 | . 2 . 5 9 4 3 2 5 Max Kills in Single Turn 3 | . 1 1 3 3 1 1 1 2 Gunslinging 1 | . . . 1 . . . . . Exploded 3 | . . . 3 2 . . . . Melee 1 | . . . . 1 . . . 1 Uniques/NPCs Destroyed . | . . . . . . . . . Combat | -11 -10 -10 -9 -9 -8 -7 -6 -5 -------- Run | Yrd Mat Min Mat Sto Mat Fac Fac Fac Hostile Shots Fired 596 | . 4 . 53 152 54 10 17 306 Missed 156 | . 2 . 11 31 19 2 5 86 Damage Taken 4865 | . 8 . 354 1153 306 199 146 2699 Core 658 | . . . 27 149 11 141 46 284 Absorbed by Shields 145 | . . . . . . . . 145 Redirected to Shielding 207 | . . . . . 34 17 22 134 Ignored by Resistances 2953 | . 6 . 224 713 187 48 84 1691 Core Remaining (%) 87 | 100 . 100 . 56 98 79 94 . Volleys Fired 209 | . 3 6 23 56 16 6 4 95 Largest 3 | . 1 1 2 2 2 3 3 3 Hottest 211 | . 40 100 46 136 143 211 211 211 Shots Fired 352 | . 3 6 40 93 32 18 12 148 Gun 209 | . 3 . 34 52 16 6 4 94 Cannon 112 | . . . . 22 16 12 8 54 Launcher 25 | . . . 6 19 . . . . Special 6 | . . 6 . . . . . . Kinetic 168 | . . . 34 51 . . . 83 Thermal 159 | . 3 6 . 23 32 18 12 65 Explosive 25 | . . . 6 19 . . . . Electromagnetic . | . . . . . . . . . Robot Hit Streak 42 | . 3 . 25 38 34 37 11 42 Robot Miss Streak 2 | . . . 1 2 . 1 1 1 Penetration Max 1 | . . . . . . . . 1 Secondary Targets 2 | . . . 1 1 . . . . Max Gunslinging Chain 1 | . . . 1 1 . . . . Shots Hit Robots 310 | . 4 1 35 68 28 13 11 150 Core Hits 176 | . 2 1 24 66 6 6 5 66 Critical Kills 4 | . . . 1 . . . . 3 Critical Parts Destroyed 2 | . . . . . . . . 2 Critical Strikes 17 | . . . 1 . 1 . 1 14 Burn 5 | . . . . . 1 . 1 3 Destroy 8 | . . . 1 . . . . 7 Sever 4 | . . . . . . . . 4 Melee Attacks 24 | . 8 1 . . . . . 15 Impact . | . . . . . . . . . Slashing 24 | . 8 1 . . . . . 15 Piercing . | . . . . . . . . . Sneak Attacks 2 | . 1 1 . . . . . . Combat Hostiles . | . . . . . . . . . Follow-up Attacks . | . . . . . . . . . Damage Inflicted 8858 | . 32 105 975 2697 602 234 227 3986 Guns 4242 | . 32 . 631 788 342 62 64 2323 Cannons 2000 | . . . . 368 248 164 163 1057 Explosions 1874 | . . . 333 1508 . . . 33 Melee 512 | . . 49 . . . . . 463 Ramming 206 | . . 32 11 33 12 8 . 110 Kinetic 3530 | . . . 631 768 . . . 2131 Thermal 2736 | . 32 24 . 388 590 226 227 1249 Explosive 1841 | . . . 333 1508 . . . . Electromagnetic 33 | . . . . . . . . 33 Impact . | . . . . . . . . . Slashing 512 | . . 49 . . . . . 463 Piercing . | . . . . . . . . . Highest Corruption 12 | . . . . . 2 . . 12 Average Corruption 2 | . . . . . 2 . . 2 Corruption Purged . | . . . . . . . . . Corruption Blocked . | . . . . . . . . . Effects 15 | . . . . . . . . 15 Message Errors 3 | . . . . . . . . 3 Matter Fused 3 | . . . . . . . . 3 Energy Discharges 2 | . . . . . . . . 2 Parts Rejected 1 | . . . . . . . . 1 Data Loss (major) 3 | . . . . . . . . 3 Misfires 1 | . . . . . . . . 1 Weapon Failures 2 | . . . . . . . . 2 Overload Shots . | . . . . . . . . . Overflow Damage 104 | . . 9 44 51 . . . . Projectiles . | . . . . . . . . . Explosions 95 | . . . 44 51 . . . . Melee 9 | . . 9 . . . . . . Knockbacks 1 | . . . . . 1 . . . Impact 1 | . . . . . 1 . . . Kinetic . | . . . . . . . . . Secondary . | . . . . . . . . . Self-Inflicted Damage 188 | . . . 13 175 . . . . Shots 9 | . . . 1 8 . . . . Rammed 24 | . . 4 3 5 1 2 . 9 Targets Rammed 28 | . . 5 3 6 1 3 . 10 Kicked . | . . . . . . . . . Crushed 4 | . . 1 . 1 . 1 . 1 Highest Temperature 666 | . 18 113 82 329 540 666 225 355 Average Temperature 93 | . 9 60 27 74 200 296 102 43 Received Heat Transfer 1590 | . . . 192 588 162 72 108 468 Effects 15 | . . . . . 5 10 . . Shutdowns 4 | . . . . . 2 2 . . Interference 1 | . . . . . 1 . . . Matter Decay 2 | . . . . . . 2 . . Short Circuit 2 | . . . . . 1 1 . . Damage (minor) 1 | . . . . . 1 . . . Damage (major) 4 | . . . . . . 4 . . Damage (core) 1 | . . . . . . 1 . . Siege Activations . | . . . . . . . . . Robots Corrupted . | . . . . . . . . . Combat Hostiles . | . . . . . . . . . Parts Fried . | . . . . . . . . . Impact Corruptions . | . . . . . . . . . Robots Melted 6 | . . . . . 2 . 1 3 Combat Hostiles 6 | . . . . . 2 . 1 3 Parts Melted 15 | . . . . 1 1 2 2 9 Heat Transferred 5175 | . 75 50 . 684 1110 407 481 2368 Parts Sabotaged 3 | . . . . . . . . 3 Parts Stolen . | . . . . . . . . . Parts Stripped . | . . . . . . . . . Power Chain Reactions . | . . . . . . . . . Alert | -11 -10 -10 -9 -9 -8 -7 -6 -5 ------- Run | Yrd Mat Min Mat Sto Mat Fac Fac Fac Peak Influence 453 | . 88 5 266 453 295 197 110 279 Initial 116 | . . . . 50 116 97 70 39 Average 96 | . 44 1 116 218 185 161 97 63 Maximum Alert Level 2 | . . . 1 2 1 . . 1 Low Security (%) 86 | 100 100 100 77 51 63 100 100 97 Level 1 13 | . . . 22 43 36 . . 2 Level 2 . | . . . . 5 . . . . Level 3 . | . . . . . . . . . Level 4 . | . . . . . . . . . Level 5 . | . . . . . . . . . High Security . | . . . . . . . . . Max Security . | . . . . . . . . . Squads Dispatched 19 | . . . 1 6 . 2 . 10 Investigation 5 | . . . . 1 . 1 . 3 Extermination 3 | . . . . . . . . 3 Reinforcement 4 | . . . 1 1 . 1 . 1 Assault 2 | . . . . 2 . . . . Garrison 5 | . . . . 2 . . . 3 Intercept . | . . . . . . . . . Searches Triggered . | . . . . . . . . . Construction Impeded 1 | . . . . . . 1 . . Haulers Reinforced . | . . . . . . . . . Active Scanning Responses . | . . . . . . . . . Cargo Convoy Interrupts 1 | . . . . . . . . 1 Stealth | -11 -10 -10 -9 -9 -8 -7 -6 -5 --------- Run | Yrd Mat Min Mat Sto Mat Fac Fac Fac Distress Signals 7 | . . . 1 1 2 . . 3 Communications Jammed . | . . . . . . . . . Distress Signals . | . . . . . . . . . Times Spotted 125 | . 5 . 16 42 10 2 2 48 Peak Tracking Total 9 | . 3 . 5 9 5 2 2 8 Tactical Retreats 6 | . . . . 1 . . . 5 Traps | -11 -10 -10 -9 -9 -8 -7 -6 -5 ------- Run | Yrd Mat Min Mat Sto Mat Fac Fac Fac Traps Triggered 3 | . . . . . . . . 3 Indirectly . | . . . . . . . . . Trap Hack Attempts . | . . . . . . . . . Triggered . | . . . . . . . . . Disarmed . | . . . . . . . . . Reprogrammed 1 | . . . . 1 . . . . Reused . | . . . . . . . . . Traps Extracted . | . . . . . . . . . Installed . | . . . . . . . . . Triggered . | . . . . . . . . . Machines | -11 -10 -10 -9 -9 -8 -7 -6 -5 ---------- Run | Yrd Mat Min Mat Sto Mat Fac Fac Fac Machines Disabled 10 | . . 1 1 2 1 . . 5 Max in Single Turn 2 | . . 1 1 1 1 . . 2 Garrison Access 2 | . . . . 1 . . . 1 Machines Repaired . | . . . . . . . . . Machines Dismantled . | . . . . . . . . . Machines Sabotaged . | . . . . . . . . . Overloaded Fab Kills . | . . . . . . . . . Hacking | -11 -10 -10 -9 -9 -8 -7 -6 -5 --------- Run | Yrd Mat Min Mat Sto Mat Fac Fac Fac Machines Accessed 21 | . 3 . 2 6 . 2 1 7 Terminals 17 | . 3 . 2 5 . 2 1 4 Fabricators 1 | . . . . . . . . 1 Repair Stations . | . . . . . . . . . Recycling Units 1 | . . . . . . . . 1 Scanalyzers . | . . . . . . . . . Garrison Access 2 | . . . . 1 . . . 1 Total Hacks 45 | . 5 . 2 10 . 4 1 23 Successful 31 | . 2 . 2 6 . 3 1 17 Failed 14 | . 3 . . 4 . 1 . 6 Catastrophic 1 | . 1 . . . . . . . Database Lockouts . | . . . . . . . . . Manual 1 | . . . . 1 . . . . Terminals 32 | . 5 . 2 8 . 4 1 12 Fabricators 2 | . . . . . . . . 2 Repair Stations . | . . . . . . . . . Recycling Units 8 | . . . . . . . . 8 Scanalyzers . | . . . . . . . . . Garrison Access 3 | . . . . 2 . . . 1 Terminal Hacks 22 | . 2 . 2 5 . 3 1 9 Record 5 | . . . . . . . . 5 Open Door 3 | . . . . 3 . . . . Open DSF 3 | . . . . . . 1 1 1 Branch Access Points 2 | . 1 . . . . . . 1 Alert Level 3 | . 1 . 1 . . 1 . . Locate Traps 1 | . . . . 1 . . . . Reprogram Traps 1 | . . . . 1 . . . . Investigation Status 1 | . . . . . . . . 1 Extermination Status 1 | . . . . . . . . 1 Reinforcement Status 1 | . . . 1 . . . . . Zone Layout 1 | . . . . . . 1 . . Fabricator Hacks 2 | . . . . . . . . 2 Network Status 1 | . . . . . . . . 1 Build 1 | . . . . . . . . 1 Repair Station Hacks . | . . . . . . . . . Recycling Unit Hacks 5 | . . . . . . . . 5 Recycle Component 1 | . . . . . . . . 1 Process 2 | . . . . . . . . 2 Retrieve Matter 1 | . . . . . . . . 1 Retrieve Components 1 | . . . . . . . . 1 Scanalyzer . | . . . . . . . . . Garrison Access Hacks 2 | . . . . 1 . . . 1 Seal Access 2 | . . . . 1 . . . 1 Unauthorized Hacks . | . . . . . . . . . Terminals . | . . . . . . . . . Fabricators . | . . . . . . . . . Repair Stations . | . . . . . . . . . Recycling Units . | . . . . . . . . . Scanalyzers . | . . . . . . . . . Garrison Access . | . . . . . . . . . Data Cores Recovered 1 | . . . . . . . . 1 Used . | . . . . . . . . . Hacking Detections 14 | . 3 . 2 2 . 1 1 5 Full Trace Events 5 | . . . . 1 . 1 . 3 Feedback Events . | . . . . . . . . . Feedback Blocked . | . . . . . . . . . Robot Schematics Acquired . | . . . . . . . . . Robots Built . | . . . . . . . . . Authchips . | . . . . . . . . . Time . | . . . . . . . . . Total Robot Build Rating . | . . . . . . . . . Part Schematics Acquired . | . . . . . . . . . Parts Built 1 | . . . . . . . . 1 Authchips . | . . . . . . . . . Time 69 | . . . . . . . . 69 Total Part Build Rating 9 | . . . . . . . . 9 Parts Repaired . | . . . . . . . . . Time . | . . . . . . . . . Parts Recycled 1 | . . . . . . . . 1 Recycled Matter 2 | . . . . . . . . 2 Retrieved Matter 2 | . . . . . . . . 2 Retrieved Components . | . . . . . . . . . Parts Scanalyzed . | . . . . . . . . . Part Schematics Acquired . | . . . . . . . . . Parts Damaged . | . . . . . . . . . Bothacking | -11 -10 -10 -9 -9 -8 -7 -6 -5 ------------ Run | Yrd Mat Min Mat Sto Mat Fac Fac Fac Used RIF Installer . | . . . . . . . . . Robots Hacked . | . . . . . . . . . Non-combat . | . . . . . . . . . Combat . | . . . . . . . . . Robot Hacks Applied . | . . . . . . . . . Relay Couplers Released . | . . . . . . . . . Fabnet Peak Effective % . | . . . . . . . . . Robots Rewired . | . . . . . . . . . Allies Hacked . | . . . . . . . . . Hacks Repelled . | . . . . . . . . . Allies | -11 -10 -10 -9 -9 -8 -7 -6 -5 -------- Run | Yrd Mat Min Mat Sto Mat Fac Fac Fac Total Allies 7 | . . 5 . 2 . . . . Largest Group 3 | . . 3 1 2 . . . . Highest-Rated Group 62 | . . 43 31 62 . . . . Highest-Rated Ally 31 | . . 31 31 31 . . . . Total Orders 1 | . . 1 . . . . . . GUARD 1 | . . 1 . . . . . . Ally Attacks 21 | . . 4 9 8 . . . . Total Damage 250 | . . 28 96 126 . . . . Kills . | . . . . . . . . . Allies Corrupted . | . . . . . . . . . Allies Melted . | . . . . . . . . . Intel | -11 -10 -10 -9 -9 -8 -7 -6 -5 ------- Run | Yrd Mat Min Mat Sto Mat Fac Fac Fac Robot Analysis Total . | . . . . . . . . . Derelict Logs Recovered . | . . . . . . . . . Drone Launches . | . . . . . . . . . Drone Recoveries . | . . . . . . . . . Exploration | -11 -10 -10 -9 -9 -8 -7 -6 -5 ------------- Run | Yrd Mat Min Mat Sto Mat Fac Fac Fac Turns Passed 5872 | 131 484 811 610 1051 297 166 350 1972 Spaces Moved 3032 | 77 261 465 314 534 141 66 206 968 Core 4 | 3 . . . . . . . 1 Treads 3028 | 74 261 465 314 534 141 66 206 967 Legs . | . . . . . . . . . Wheels . | . . . . . . . . . Hover . | . . . . . . . . . Flight . | . . . . . . . . . Fastest Speed 50 | 50 160 160 160 160 160 160 160 160 Average Speed 161 | 155 167 160 160 160 163 191 160 161 Slowest Speed 1050 | 160 320 160 160 160 240 240 160 1050 Overloaded Moves . | . . . . . . . . . Propulsion Burnouts . | . . . . . . . . . Robots Hopped . | . . . . . . . . . Cave-ins Triggered . | . . . . . . . . . Exploration Rate (%) 28 | 5 46 43 31 78 17 2 7 28 Regions Visited 8 Branch Regions 2 Pre-discovered Areas 1 | . . 1 . . . . . . Known Exits Taken 8 | 1 1 1 1 1 1 1 1 . Unknown Exits Taken . | . . . . . . . . . Scrap Searched . | . . . . . . . . . Spaces Dug 3 | . 3 . . . . . . . Terrain Destroyed 104 | . 3 . 19 73 . . . 9 Melee 3 | . 3 . . . . . . . Projectile 9 | . . . . . . . . 9 AOE 92 | . . . 19 73 . . . . Terrain Rammed . | . . . . . . . . . Walls Destroyed . | . . . . . . . . . Machines Disabled . | . . . . . . . . . Actions | -11 -10 -10 -9 -9 -8 -7 -6 -5 --------- Run | Yrd Mat Min Mat Sto Mat Fac Fac Fac Total 3582 | 85 287 509 380 631 172 93 216 1209 Wait 146 | . . 31 22 2 . 5 4 82 Move 3024 | 76 260 464 313 533 140 65 205 968 Hop . | . . . . . . . . . Pick Up 21 | . 4 . 3 9 2 . . 3 Fast Attach 50 | 8 5 . 4 5 4 2 1 21 Attach 19 | . 1 . 1 1 3 5 . 8 Detach 8 | . 1 . 1 . . 4 . 2 Swap 23 | . 1 1 3 10 3 . 2 3 Drop 30 | 1 4 1 7 9 3 3 . 2 Fire 209 | . 3 6 23 56 16 6 4 95 Melee 24 | . 8 1 . . . . . 15 Ram . | . . . . . . . . . Kick . | . . . . . . . . . Crush 28 | . . 5 3 6 1 3 . 10 Escape Stasis . | . . . . . . . . . Rewire . | . . . . . . . . . Trap . | . . . . . . . . . Miscellaneous . | . . . . . . . . . Route ------- -11/Scrapyard -10/Materials (discovered 2 exits: *Mat / *Min) -10/Mines -9/Materials (discovered 2 exits: *Min / *Sto) -9/Storage -8/Materials -7/Factory -6/Factory -5/Factory (discovered 4 exits: Upp x2 / Ext x2) History --------- Turn | Location | Event 12 | -11/Scrapyard | Identified exit to Materials 12 | -11/Scrapyard | Discovered exit to Materials (range 15) 132 | -11/Scrapyard | Entered Materials 132 | -10/Materials | Evolved 1 slot: Utility x1 308 | -10/Materials | Build established: Hacker-Mutant 487 | -10/Materials | Identified exit to Mines 590 | -10/Materials | Identified exit to Materials 590 | -10/Materials | Discovered exit to Materials (range 15) 616 | -10/Materials | Entered Mines 725 | -10/Mines | Discovered exit to Materials (range 10) 743 | -10/Mines | Assisted by bots powering up and referring to "LRC-V3" 852 | -10/Mines | Learned location of Storage (-9) 1288 | -10/Mines | Assembled infested the area 1293 | -10/Mines | Assisted by a Guerilla fighting off Assembled 1333 | -10/Mines | Lost 3 allies 1427 | -10/Mines | Entered Materials 1427 | -9/Materials | Accompanied by 1 ally 1427 | -9/Materials | Evolved 2 slots: Propulsion x1, Utility x1 1432 | -9/Materials | Led the pair of lost Derelicts to an unsafe place 1972 | -9/Materials | Identified exit to Mines 1972 | -9/Materials | Discovered exit to Mines (range 7) 2007 | -9/Materials | Identified exit to Storage 2007 | -9/Materials | Discovered exit to Storage (range 13) 2037 | -9/Materials | Entered Storage 2375 | -9/Storage | Garrison activated, responded to threat 2898 | -9/Storage | Met a pair of Derelict thieves 2988 | -9/Storage | Destroyed 9 combat bots 3025 | -9/Storage | Identified exit to Materials 3025 | -9/Storage | Discovered exit to Materials (range 16) 3088 | -9/Storage | Entered Materials 3088 | -8/Materials | Evolved 2 slots: Power x1, Weapon x1 3334 | -8/Materials | Identified exit to Factory 3334 | -8/Materials | Discovered exit to Factory (range 8) 3385 | -8/Materials | Entered Factory 3385 | -7/Factory | Evolved 2 slots: Utility x2 3424 | -7/Factory | Identified exit to Factory 3424 | -7/Factory | Discovered exit to Factory (range 14) 3551 | -7/Factory | Entered another Factory area 3551 | -6/Factory | Evolved 2 slots: Utility x2 3590 | -6/Factory | Build established: Hacker-Tank 3851 | -6/Factory | Identified exit to Factory 3851 | -6/Factory | Discovered exit to Factory (range 21) 3901 | -6/Factory | Entered another Factory area 3901 | -5/Factory | Evolved 2 slots: Utility x2 4262 | -5/Factory | Garrison activated, responded to threat 4294 | -5/Factory | Lost 4 parts (2p2w) 4557 | -5/Factory | Build established: Hacker-Mutant 4704 | -5/Factory | Fabricated Adv. Heavy Siege Treads (x1) 4747 | -5/Factory | Identified exit to Upper Caves 4747 | -5/Factory | Identified exit to Extension 5240 | -5/Factory | Lost 6 parts (1n3u2w) 5809 | -5/Factory | Cargo convoy interrupted 5843 | -5/Factory | System corruption reached 10% 5873 | -5/Factory | Self-destructed Last Messages --------------- 05854_ T-07 Excavator is excavating. 05855_ K-01 Serf collects debris. 05856_ Acquired 53 matter. 05856_ K-01 Serf collects debris. 05858_ T-07 Excavator is excavating. 05859_ Adv. Heavy Siege Treads destroyed. 05859_ Acquired Imp. Target Analyzer. 05859_ K-01 Serf collects debris. 05862_ Neutrino Core destroyed. 05862_ T-07 Excavator is excavating. 05863_ K-01 Serf collects debris. 05865_ K-01 Serf destroyed. 05867_ K-01 Serf collects debris. 05868_ System corrupted: Energy discharge (-57). 05868_ K-01 Serf collects debris. 05871_ Slug penetrates P-70 Sage. 05871_ P-70 Sage resets P-70 Sage, system corruption cleaned. 05872_ K-01 Serf collects debris. 05873_ KE Penetrator destroyed. Map ----- +----------------------------------------------------+ | "" """ """ #???????????????????????????? | | #???????????????????????????? | | #???????????????????????????? | | #########/###### #???????????????????????????? | | ??????? ???? #???????????????????????????? | | ###??? ??? #???????????????????????????? | | #?? ??? #???????????????????????????? | | #? ? #?? #???????????????????????????? | | # #? #???????????????????????????? | | # ? #? +???????????????????????????? | | # ?? #?? #????????"??????????????????? | | # ???#?? #??????? "??????????????????? | | # ?????# #??????? "??????????????????? | | # ?????# #?????? ???????????????????? | | # ?????# #?????? ????????????????????? | | # ?????# #?????+#????????????????????? | | #########+##????# ###### ###?##???????????????? | | ###???????# ####### # ##"#???????????????? | | #????????# =# ????????????????? | | #??????### !+%?????????????????? | | #??????# k#??????????????????? | | #??????# #??????????????????? | | #??????+ % #??????????????????? | | #??????# #??????????????????? | | #??????# %[*##### #????????????? | | #??????# @ !%!!%! #????????????? | | ######## R ! =%k|%= = ####?????????? | | ! ! k! % [% % u ???? | | ###### ! ##### #########????? | | #???# = #??????????????????? | | #???# ########## ######## ##??????????????????? | | #???# #????????# #??????? #???????????????????? | | !#???# #????????# #??????? #???????????????????? | | #???# #????????# #??????? p#???????????????????? | | ##???# #????????# #??????? p;???????????????????? | | ?????#+#????????#+#??????? ???????????????????? | | ?????????????????????????? ??????????????????? | | ?????????????????????????? ??????????????????? | | ?????????????????????????? ?????????????????? | | ?????????????????????????? ###????????????????? | | ???????????????????????????####??????????????????? | | ?????????????????????????????????????????????????? | | ?????????????????????????????????????????????????? | | ?????????????????????????????????????????????????? | | ?????????????????????????????????????????????????? | | ?????????????????????????????????????????????????? | | ?????????????????????????????????????????????????? | | ?????????????????????????????????????????????????? | | ###+###??????????????????????????????????????????? | | #??????????????????????????????????????????? | +----------------------------------------------------+ Best States ------------- Heat Dissipation 62 Energy Generation 32 Energy Capacity 365 Matter Stores 300 Matter Capacity 300 Sight Range 22 Terrain Scan Range 14 Terrain Scan Density 110 Armor Coverage 375 Resistance: KI 65 Resistance: TH 35 Resistance: EX 35 Resistance: EM 35 Resistance: I 35 Resistance: S 35 Resistance: P 35 Propulsion Shielding 66 Melee Speed Boost 20 Evasion (%) 40 Target Analysis 9 Recoil Reduction 3 Energy Filtering 50 Kinecelleration 40 Offensive Hacking 20 Item Schematics ----------------- None Robot Schematics ------------------ None Fabricated ------------ Adv. Heavy Siege Treads | x1 | -5/Factory | Preloaded Alien Tech Used ----------------- None Achievements -------------- Hey, That's Mine! Challenges ------------ None Game ------ Seed EtherialAuthchipField Manual? 0 Play Time 00:54:07 Cumulative 25.2 hours Start 2024.05.19 @ 17:11:18 End 2024.05.19 @ 18:21:45 Sessions 1 Manual Loads 0 Difficulty Explorer Special Mode None Game No. 32 Rogue 0 Adventurer 27 Explorer 5 Win Type - Total 1 Types 1/0/0/0/0/0/0/0/0 Lore% 21 Gallery% 32 Achievement% 28 Wizard Run 0 Options --------- Layout 1 ASCII 0 Keyboard 0 Movement Arrows Keybinds 0 Fullscreen 1 Font 24/Smallcaps Map View 50x35 Zoom Use 0% Tactical HUD 1 Map Filters NONE Filters NONE Steam 1 RUN: 0da48a76-91a7-49c1-8af5-0d39edbbe0b7